fUSD/lending_fUSD_20240330
["ID","MTS","AMOUNT","RATE_DAILY","PERIOD"]
[321016742,1711771843234,-150.5,0.0004884,15]
[321016743,1711771843243,-956.37209737,0.00048844,2]
[321016744,1711771843252,-500.0,0.00048846,9]
[321016745,1711771843262,-500.0,0.00048846,9]
[321016746,1711771843271,-6381.24,0.00048846,9]
[321016747,1711771843281,-9208.8843598,0.00048847,2]
[321016748,1711771843294,-11087.076,0.00048847,2]
[321016749,1711771843303,-8665.692,0.00048847,2]
[321016750,1711771843313,-10926.2314789,0.00048847,2]
[321016751,1711771843322,-8539.9754378,0.00048847,2]
[321016752,1711771843331,-112020.8613333,0.00048847,2]
[321016753,1711771843341,-87555.8426666,0.00048847,2]
[321016754,1711771843352,-13780.1423345,0.00048847,2]
[321016755,1711771843362,-249.6576452,0.00048847,2]
[321016756,1711771843371,-249.6576452,0.00048847,2]
[321016757,1711771843380,-111975.7986666,0.00048847,2]
[321016758,1711771843390,-87553.0439999,0.00048847,2]
[321016759,1711771843400,-598.0598189,0.00048847,2]
[321016760,1711771843409,-598.0598189,0.00048847,2]
[321016761,1711771843419,-2110.6510324,0.00048847,2]
[321016762,1711771843428,-1650.990814,0.00048847,2]
[321016763,1711771843437,-111867.2017333,0.00048847,2]
[321016764,1711771843446,-87504.6227999,0.00048847,2]
[321016765,1711771843455,-150.5,0.0004885,15]
[321016766,1711771843465,-157.033011,0.00048858,88]
[321016768,1711771843475,-11145.0,0.00048863,2]
[321016770,1711771843484,-221.02142477,0.0004887,90]
[321016772,1711771843494,-4781.86048685,0.00048877,2]
[321016774,1711771843503,-157.033011,0.00048878,89]
[321016776,1711771843513,-500.0,0.00048878,9]
[321016779,1711771843522,-500.0,0.00048879,9]
[321016780,1711771843531,-500.0,0.00048879,9]
[321016782,1711771843540,-500.0,0.00048879,9]
[321016785,1711771843550,-500.0,0.00048879,9]
[321016787,1711771843559,-500.0,0.00048879,9]
[321016789,1711771843568,-500.0,0.00048879,9]
[321016790,1711771843577,-411.22993993,0.00048879,9]
[321016791,1711771843587,-153653.1314585,0.0004888,2]
[321016792,1711771844010,-4168816.72275514,0.0004888,2]
[321016793,1711771844022,-819097.3408708,0.0004888,2]
[321016794,1711771844819,-525.44798546,0.0004888,2]
[321016795,1711771845502,-163.90240331,0.00040317,2]
[321016796,1711771845512,-1563.58455512,0.00041944,4]
[321016797,1711771845521,-343.08201747,0.00041944,4]
[321016798,1711771845530,-1735.72859736,0.0004888,2]
[321016800,1711771845876,-172.0,0.0004187,7]
[321016801,1711771845886,-784.72507575,0.00041943,4]
[321016802,1711771845895,-1977.7723081,0.00041944,4]
[321016803,1711771845904,-793.12,0.00045438,2]
[321016804,1711771845914,-207.0,0.000471,2]
[321016805,1711771845923,-793.12,0.00048177,2]
[321016806,1711771845932,-174231.86571643,0.0004888,2]
[321016812,1711772710903,-898.71267776,0.00032781,4]
[321016813,1711772710924,-446.83878993,0.00032782,4]
[321016814,1711772710946,-654.44853231,0.00032782,4]
[321016815,1711772712188,-2000.0,0.00032782,4]
[321016816,1711772712617,-2000.0,0.00032782,4]
[321016817,1711772712940,-891.78723213,0.00032782,4]
[321016818,1711772712962,-150.0,0.00032783,2]
[321016819,1711772712983,-234.87423799,0.00032787,2]
[321016820,1711772713005,-723.33852988,0.00032888,4]
[321016821,1711772713266,-2000.0,0.00032888,4]
[321016822,1711772713958,-568.19393771,0.00032888,4]
[321016823,1711772785035,155.0,0.00032888,2]
[321016824,1711772793600,155.0,0.00032888,4]
[321016825,1711772799123,300.0,0.00032683,2]
[321016826,1711772802953,155.0,0.00032888,2]
[321016827,1711772824979,155.51658986,0.00032888,2]
[321016835,1711772970095,170.77,0.0003229,2]
[321016842,1711773027783,-250.0,0.00033,3]
[321016843,1711773027806,-1750.0,0.00034798,4]
[321016844,1711773029440,-2000.0,0.00034798,4]
[321016845,1711773030085,-132.36503511,0.00034798,4]
[321016846,1711773030106,-1867.63496489,0.00034799,2]
[321016847,1711773030735,-2000.0,0.00034799,2]
[321016848,1711773031342,-2000.0,0.00034799,2]
[321016851,1711773032002,-1038.16067943,0.00034799,2]
[321016852,1711773032043,-2000.0,0.00034799,2]
[321016853,1711773032111,-5106.04889515,0.00034799,2]
[321016854,1711773032121,-300.0,0.00035,3]
[321016855,1711773032130,-150.0,0.00036899,3]
[321016856,1711773032140,-2443.95110485,0.000369,2]
[321016857,1711773032478,-3239.1206751,0.000369,2]
[321016860,1711773037864,-3673.01788411,0.000369,2]
[321016862,1711773037974,-1877.03873852,0.000369,2]
[321016863,1711773037986,-4221.22654567,0.000369,2]
[321016864,1711773038031,-678.86058556,0.000369,2]
[321016865,1711773038042,-407.18236619,0.000369,2]
[321016866,1711773038051,-350.0,0.00037,3]
[321016867,1711773038060,-100.70008406,0.00038552,2]
[321016868,1711773038103,-269.92991594,0.00038552,2]
[321016869,1711773038113,-400.0,0.00039,3]
[321016870,1711773038122,-163.58997992,0.000402,2]
[321016871,1711773038131,-324.0,0.000403,2]
[321016872,1711773038140,-499.99,0.000403,2]
[321016873,1711773038150,-155.75548791,0.00040316,4]
[321016874,1711773038159,-718.45,0.0004047,2]
[321016875,1711773038169,-547.09,0.00040519,2]
[321016876,1711773038178,-166.43,0.00040573,15]
[321016877,1711773038187,-210.0,0.00040589,5]
[321016878,1711773038196,-250.0,0.00040734,112]
[321016879,1711773038206,-370.63,0.00040816,2]
[321016880,1711773038215,-1538.26,0.00040889,2]
[321016881,1711773038223,-680.0,0.00040999,2]
[321016882,1711773038233,-662.51,0.00041374,2]
[321016883,1711773038242,-1888.18907061,0.00041435,2]
[321016884,1711773038251,-957.7478,0.00041436,2]
[321016885,1711773038261,-489.17760472,0.00041522,7]
[321016886,1711773038270,-222.36615129,0.00041522,4]
[321016887,1711773038279,-387.24410411,0.00041522,4]
[321016888,1711773038288,-1249.19045626,0.00041522,120]
[321016889,1711773038297,-156.42,0.00041523,2]
[321016890,1711773038307,-4325.49239775,0.00041523,2]
[321016891,1711773038316,-784.72507575,0.00041524,4]
[321016892,1711773038325,-203.7838027,0.00041524,4]
[321016893,1711773038334,-3124.11419268,0.00041524,4]
[321016894,1711773038343,-12758.04759302,0.00041524,4]
[321016895,1711773038353,-166.40609062,0.00041524,4]
[321016896,1711773038363,-34977.62909897,0.00041524,2]
[321016897,1711773038372,-376.00067872,0.00041525,4]
[321016898,1711773038381,-99237.246,0.00041526,2]
[321016899,1711773038390,-155.000001,0.00041535,4]
[321016900,1711773038399,-207.0,0.00041536,2]
[321016901,1711773038409,-12201.7372,0.00041536,2]
[321016902,1711773038419,-500.0,0.00041536,2]
[321016904,1711773038428,-1220.00009282,0.00041734,2]
[321016906,1711773038437,-156.42,0.00042064,2]
[321016907,1711773038447,-168.93,0.00042144,2]
[321016908,1711773038455,-250.0,0.00042206,2]
[321016909,1711773038465,-320.0,0.00042389,2]
[321016910,1711773038474,-156.42,0.00042605,2]
[321016911,1711773038484,-1888.18907054,0.00042634,2]
[321016912,1711773038493,-370.63,0.0004308,2]
[321016913,1711773038502,-156.42,0.00043146,2]
[321016914,1711773038512,-23900.0,0.00043171,2]
[321016915,1711773038521,-718.45,0.0004321,2]
[321016916,1711773038531,-250.0,0.00043284,2]
[321016917,1711773038540,-156.42,0.00043687,2]
[321016918,1711773038549,-1888.18907054,0.00043833,2]
[321016919,1711773038559,-29287.3707,0.00044575,2]
[321016920,1711773038568,-176.3115268,0.00044575,11]
[321016921,1711773038579,-433.0,0.00044675,2]
[321016922,1711773038588,-611.195,0.00044675,2]
[321016923,1711773038597,-803.0,0.00044675,2]
[321016924,1711773038607,-605.0,0.00044675,2]
[321016925,1711773038617,-279.0,0.00044675,2]
[321016926,1711773038626,-2291.48,0.00044675,2]
[321016927,1711773038778,-396.0,0.00044675,2]
[321016928,1711773038790,-2426.0,0.00044675,2]
[321016929,1711773038799,-1628.0,0.00044675,2]
[321016930,1711773038808,-213.0,0.00044675,2]
[321016931,1711773038817,-204.0,0.00044675,2]
[321016932,1711773038827,-3959.724,0.00044675,2]
[321016933,1711773038836,-962.0,0.00044675,2]
[321016934,1711773038845,-4777.0,0.00044675,2]
[321016935,1711773038854,-458.0,0.00044675,2]
[321016936,1711773038864,-43018.0,0.00044675,2]
[321016937,1711773038873,-2452.0,0.00044675,2]
[321016938,1711773038882,-1226.0,0.00044675,2]
[321016939,1711773038891,-157.62344408,0.00044895,30]
[321016940,1711773038899,-166.53827748,0.00044976,30]
[321016941,1711773038908,-165.84004133,0.00044988,30]
[321016942,1711773038919,-387.64376467,0.00045,30]
[321016943,1711773038928,-1888.18907054,0.00045033,2]
[321016944,1711773038938,-156.76840893,0.00045119,30]
[321016945,1711773038947,-155.8087801,0.00045185,30]
[321016946,1711773038957,-370.63,0.00045344,2]
[321016947,1711773038966,-1430.92,0.00045376,120]
[321016948,1711773038975,-150.0,0.000455,8]
[321016949,1711773038985,-155.34840068,0.00045706,30]
[321016950,1711773038994,-718.45,0.0004595,2]
[321016951,1711773039003,-150.0,0.00046,8]
[321016952,1711773039011,-680.0,0.00046124,2]
[321016953,1711773039020,-1888.18907054,0.00046232,2]
[321016954,1711773039029,-161.78637705,0.00046334,30]
[321016955,1711773039039,-155.8087801,0.00046436,30]
[321016956,1711773039048,-157.67935208,0.00046447,30]
[321016957,1711773039057,-150.0,0.000465,8]
[321016958,1711773039066,-154.64194344,0.00046567,30]
[321016959,1711773039075,-154.64194344,0.00046841,30]
[321016960,1711773039085,-150.0,0.00047,9]
[321016961,1711773039094,-165.84004133,0.00047039,30]
[321016962,1711773039103,-150.0,0.0004728,2]
[321016963,1711773039113,-1888.18907054,0.00047431,2]
[321016964,1711773039122,-150.0,0.000475,9]
[321016965,1711773039131,-151.0,0.00047504,8]
[321016966,1711773039141,-154.64194344,0.00047529,30]
[321016967,1711773039151,-155.8087801,0.00047577,30]
[321016968,1711773039161,-370.63,0.00047608,2]
[321016969,1711773039172,-500.0,0.00047674,2]
[321016970,1711773039181,-500.0,0.00047674,2]
[321016971,1711773039190,-500.0,0.00047674,2]
[321016972,1711773039199,-500.0,0.00047674,2]
[321016973,1711773039209,-500.0,0.00047674,2]
[321016974,1711773039218,-500.0,0.00047674,2]
[321016975,1711773039227,-500.0,0.00047674,2]
[321016976,1711773039249,-383.50851781,0.00047674,2]
[321016977,1711773039269,-433.0,0.00047675,2]
[321016978,1711773039291,-590.88,0.00047675,2]
[321016979,1711773039313,-605.0,0.00047675,2]
[321016980,1711773039336,-252.897,0.00047675,2]
[321016981,1711773039361,-396.0,0.00047675,2]
[321016982,1711773039380,-1374.834,0.00047675,2]
[321016983,1711773039389,-213.0,0.00047675,2]
[321016984,1711773039398,-150.0,0.00047675,2]
[321016985,1711773039408,-962.0,0.00047675,2]
[321016986,1711773039419,-4777.0,0.00047675,2]
[321016987,1711773039428,-458.0,0.00047675,2]
[321016988,1711773039437,-43018.0,0.00047675,2]
[321016989,1711773039446,-2452.0,0.00047675,2]
[321016990,1711773039455,-320.0,0.00047687,2]
[321016991,1711773039465,-6375.85,0.00047753,10]
[321016992,1711773039474,-5313.21,0.00047753,10]
[321016993,1711773039484,-153.43144476,0.00047763,36]
[321016994,1711773039493,-163.58997991,0.00047763,2]
[321016995,1711773039502,-275.526978,0.000478,9]
[321016996,1711773039511,-11145.0,0.00047926,2]
[321016997,1711773039521,-5053.20051508,0.0004799,2]
[321016998,1711773039531,-155.0,0.00048,15]
[321016999,1711773039540,-1018.0,0.00048,2]
[321017000,1711773039549,-150.0,0.00048,9]
[321017001,1711773039559,-255.11290608,0.00048135,120]
[321017002,1711773039568,-2577.51400952,0.00048184,4]
[321017003,1711773039577,-150.0,0.00048235,2]
[321017004,1711773039587,-150.0,0.00048235,2]
[321017005,1711773039596,-150.0,0.00048235,2]
[321017006,1711773039605,-150.0,0.00048235,2]
[321017007,1711773039615,-150.0,0.00048235,2]
[321017008,1711773039624,-150.0,0.00048235,2]
[321017009,1711773039633,-150.0,0.00048235,2]
[321017010,1711773039643,-150.0,0.000483,9]
[321017011,1711773039652,-165.84004133,0.00048321,30]
[321017012,1711773039661,-165.84004133,0.00048344,30]
[321017013,1711773039671,-155.34840068,0.00048389,30]
[321017014,1711773039680,-800.0,0.00048489,25]
[321017015,1711773039704,-540.0,0.00048493,30]
[321017016,1711773039721,-643.0,0.00048493,30]
[321017017,1711773039740,-567.0,0.00048493,30]
[321017020,1711773039762,-150.0,0.000485,9]
[321017022,1711773039778,-333.35019094,0.000485,2]
[321017023,1711773039796,-518.87829392,0.000485,2]
[321017025,1711773039814,-165.7454,0.000485,120]
[321017027,1711773039833,-216.97869094,0.000485,26]
[321017029,1711773039851,-325.0385125,0.00048508,2]
[321017031,1711773039868,-159.73622367,0.00048508,2]
[321017034,1711773039887,-1284.31389636,0.00048508,2]
[321017037,1711773039909,-305.95076402,0.00048508,2]
[321017039,1711773039922,-150.0,0.00048551,7]
[321017041,1711773039943,-150.0,0.00048552,7]
[321017044,1711773039962,-165.84004133,0.00048553,30]
[321017045,1711773039975,-151.033013,0.00048568,88]
[321017046,1711773039993,-150.5,0.0004857,15]
[321017047,1711773040017,-151.033013,0.00048588,89]
[321017048,1711773040034,-211.21921329,0.00048589,2]
[321017049,1711773040050,-211.21921329,0.0004859,2]
[321017050,1711773040066,-5902.75136196,0.00048597,2]
[321017051,1711773040082,-1918935.73197011,0.00048599,21]
[321017052,1711773040098,-199.28821863,0.000486,3]
[321017053,1711773040113,-1529416.58989925,0.000486,2]
[321017054,1711773040128,-151.033013,0.00048608,90]
[321017055,1711773040143,-157.67935208,0.00048617,30]
[321017056,1711773040158,-151.033013,0.00048628,91]
[321017057,1711773040178,-1888.18907054,0.0004863,2]
[321017058,1711773040195,-151.033013,0.00048648,92]
[321017059,1711773040211,-151.033013,0.00048668,93]
[321017060,1711773040228,-151.033013,0.00048688,94]
[321017061,1711773040244,-250000.0,0.000487,7]
[321017062,1711773040260,-1024.0,0.000487,117]
[321017063,1711773040276,-151.033013,0.00048708,95]
[321017064,1711773040291,-163.0,0.00048728,7]
[321017065,1711773040306,-151.033013,0.00048728,96]
[321017066,1711773040321,-1067.59034668,0.00048732,2]
[321017067,1711773040337,-151.033013,0.00048748,97]
[321017068,1711773040352,-500.0,0.00048767,9]
[321017069,1711773040368,-500.0,0.00048767,9]
[321017070,1711773040383,-500.0,0.00048767,9]
[321017071,1711773040398,-500.0,0.00048767,9]
[321017072,1711773040415,-500.0,0.00048767,9]
[321017073,1711773040431,-500.0,0.00048767,9]
[321017074,1711773040446,-500.0,0.00048767,9]
[321017075,1711773040461,-500.0,0.00048767,9]
[321017076,1711773040476,-500.0,0.00048767,9]
[321017077,1711773040491,-500.0,0.00048767,9]
[321017078,1711773040507,-500.0,0.00048767,9]
[321017079,1711773040523,-500.0,0.00048767,9]
[321017080,1711773040538,-5849.47,0.00048767,9]
[321017081,1711773040554,-5849.47,0.00048767,9]
[321017082,1711773040569,-5849.47,0.00048767,9]
[321017083,1711773040586,-5849.47,0.00048767,9]
[321017084,1711773040603,-5849.47,0.00048767,9]
[321017085,1711773040619,-23.94847859,0.00048767,9]
[321017086,1711773041571,-5825.52152141,0.00048767,9]
[321017087,1711773041581,-5849.47,0.00048767,9]
[321017088,1711773041590,-5849.47,0.00048767,9]
[321017089,1711773041599,-5849.47,0.00048767,9]
[321017090,1711773041608,-5849.47,0.00048767,9]
[321017091,1711773041618,-5849.47,0.00048767,9]
[321017092,1711773041630,-5849.47,0.00048767,9]
[321017093,1711773041639,-5849.47,0.00048767,9]
[321017094,1711773041648,-5849.47,0.00048767,9]
[321017095,1711773041658,-5849.47,0.00048767,9]
[321017096,1711773041667,-5849.47,0.00048767,9]
[321017097,1711773041676,-5849.47,0.00048767,9]
[321017098,1711773041686,-500.0,0.00048769,9]
[321017099,1711773041696,-210.7929301,0.00048773,7]
[321017100,1711773041705,-8235.2484,0.00048779,2]
[321017101,1711773041714,-5849.47,0.00048779,9]
[321017102,1711773041723,-935.3757,0.0004878,2]
[321017103,1711773041733,-245000.0,0.0004878,2]
[321017104,1711773041742,-1000.0,0.0004878,10]
[321017105,1711773041752,-1250.86632106,0.0004878,25]
[321017106,1711773041762,-219.83622922,0.0004879,25]
[321017107,1711773041773,-150.0,0.00048799,7]
[321017108,1711773041782,-210.32,0.000488,120]
[321017109,1711773041792,-327.0,0.000488,7]
[321017110,1711773041801,-150.0,0.000488,9]
[321017111,1711773041812,-782.36233413,0.000488,14]
[321017112,1711773041821,-500.0,0.00048826,9]
[321017113,1711773041831,-500.0,0.00048846,9]
[321017114,1711773041840,-500.0,0.00048846,9]
[321017115,1711773041849,-411.22993993,0.00048846,9]
[321017116,1711773041859,-157.033011,0.00048858,88]
[321017117,1711773041868,-221.02142477,0.0004887,90]
[321017118,1711773041877,-150.0,0.00048872,7]
[321017119,1711773041887,-418.76739178,0.00048878,2]
[321017120,1711773041896,-14239.07570555,0.00048878,7]
[321017121,1711773041907,-467009.24996185,0.00048878,2]
[321017122,1711773041925,-572.00789164,0.00048878,2]
[321017123,1711773041936,-5406.09793133,0.00048878,2]
[321017124,1711773041947,-1061.680055,0.00048878,2]
[321017125,1711773041960,-1082.8479996,0.00048878,2]
[321017126,1711773041971,-1286.31668087,0.00048878,2]
[321017127,1711773041987,-883.00965683,0.00048878,2]
[321017128,1711773041999,-342.510893,0.00048878,2]
[321017136,1711773042813,-1008.274,0.00047675,2]
[321017137,1711773042823,-58949.36809228,0.00048878,2]
[321017153,1711773042901,-1223.84498045,0.00048878,2]
[321017160,1711773042913,-740.77800005,0.00048878,2]
[321017208,1711773044217,-537.0,0.00044675,2]
[321017209,1711773044226,-254.12,0.00044675,2]
[321017210,1711773044236,-537.0,0.00047675,2]
[321017211,1711773044245,-174.46763,0.0004839,42]
[321017212,1711773044255,-5487.41237,0.00048878,2]
[321017213,1711773044320,-1152.17718192,0.00048878,2]
[321017214,1711773044331,-579.654998,0.00048878,2]
[321017215,1711773044381,-45.73069983,0.00048878,2]
[321017216,1711773044495,-151.0,0.000485,7]
[321017217,1711773044504,-1596.78736165,0.00048878,2]
[321017221,1711773046415,-4436.98861155,0.00041522,4]
[321017222,1711773046426,-173161.2234204,0.00048878,2]
[321017223,1711773049047,2000.0,0.0003229,2]
[321017224,1711773049069,2000.0,0.0003229,2]
[321017225,1711773049092,2000.0,0.0003229,2]
[321017226,1711773049114,340.51947243,0.0003229,2]
[321017262,1711773650035,-3882.36503511,0.00032126,4]
[321017263,1711773681690,-317.7980854,0.00032124,2]
[321017264,1711773681712,-155.0,0.00032125,4]
[321017265,1711773681749,-150.0,0.00032289,3]
[321017266,1711773681774,-6196.23456634,0.0003229,2]
[321017267,1711773681797,-1968.78432996,0.0003229,4]
[321017268,1711773695907,967.55609801,0.0003229,4]
[321017269,1711774143972,24632.92890907,0.00042221,30]
[321017281,1711774232213,-250.0,0.00033,3]
[321017282,1711774232227,-1908.55951039,0.00040699,4]
[321017283,1711774232329,-2528.42910116,0.00040699,4]
[321017284,1711774232340,-1160.0,0.000407,2]
[321017285,1711774232351,-3737.435315,0.00044729,2]
[321017286,1711774232360,-277.97,0.00044954,2]
[321017287,1711774232370,-9999.99,0.0004503,2]
[321017288,1711774232379,-95.80347773,0.0004503,2]
[321017289,1711774232398,-404.18652227,0.0004503,2]
[321017290,1711774232410,-3.44106333,0.00045242,2]
[321017295,1711774232665,-1928.42558297,0.00045242,2]
[321017296,1711774232676,-246.81360784,0.00045242,2]
[321017297,1711774232686,-237.25916695,0.0004534,2]
[321017298,1711774232697,-155.338898,0.0004534,4]
[321017299,1711774232707,-1208.03383256,0.00045341,4]
[321017300,1711774232717,-205.43390403,0.00045341,4]
[321017301,1711774232727,-458.0,0.00045342,2]
[321017302,1711774232737,-962.0,0.00045342,2]
[321017303,1711774232750,-418.45242603,0.00045342,2]
[321017304,1711774232780,-186.54757397,0.00045342,2]
[321017305,1711774232790,-184.949,0.00045342,2]
[321017306,1711774232799,-155.531,0.00045342,2]
[321017307,1711774232809,-150.0,0.00045342,2]
[321017308,1711774232818,-213.0,0.00045342,2]
[321017309,1711774232827,-2248.05345607,0.00045342,2]
[321017310,1711774232839,-1041.63832604,0.00045342,2]
[321017311,1711774232852,-372.88887261,0.00045342,2]
[321017312,1711774232864,-1709.14612512,0.00045342,2]
[321017313,1711774232878,-307.47652922,0.00045342,2]
[321017344,1711774238271,-20309.33969094,0.00045342,2]
[321017345,1711774238282,-2452.0,0.00045342,2]
[321017346,1711774238292,-3370.373,0.00045342,2]
[321017347,1711774238304,-153.73198241,0.00045422,30]
[321017348,1711774238317,-150.0,0.000455,8]
[321017349,1711774238328,-161.78637706,0.00045751,30]
[321017350,1711774238338,-150.0,0.00046,8]
[321017351,1711774238349,-155.8087801,0.00046317,30]
[321017352,1711774238358,-166.53827749,0.00046372,30]
[321017353,1711774238367,-150.0,0.000465,8]
[321017354,1711774238376,-155.8087801,0.00046624,30]
[321017355,1711774238389,-592.0,0.00046641,2]
[321017356,1711774238400,-155.8087801,0.00046711,30]
[321017357,1711774238410,-3151.05,0.00046735,2]
[321017358,1711774238420,-162.0167426,0.00046762,30]
[321017359,1711774238431,-154.30446133,0.00046768,30]
[321017360,1711774238440,-250.0,0.00046791,120]
[321017361,1711774238452,-408.0,0.00046794,2]
[321017362,1711774238462,-250.0,0.00046805,112]
[321017363,1711774238472,-455.9,0.00046833,120]
[321017364,1711774238483,-1173.89,0.00046851,2]
[321017365,1711774238493,-500.0,0.00046904,2]
[321017366,1711774238503,-1192.43,0.00046947,120]
[321017367,1711774238513,-167.48,0.00046953,2]
[321017368,1711774238523,-1931.86664629,0.00046961,2]
[321017369,1711774238532,-246.81360784,0.00046961,2]
[321017370,1711774238541,-166.43,0.00046965,15]
[321017371,1711774238550,-150.0,0.00047,9]
[321017372,1711774238559,-277.97,0.00047218,2]
[321017373,1711774238569,-430.44,0.00047397,2]
[321017374,1711774238579,-154.38,0.00047397,2]
[321017375,1711774238588,-155.06,0.00047397,2]
[321017376,1711774238598,-168.11,0.00047397,2]
[321017377,1711774238608,-150.0,0.000475,9]
[321017378,1711774238619,-151.38854865,0.00047504,8]
[321017379,1711774238628,-155.8087801,0.0004782,30]
[321017380,1711774238638,-155.57075065,0.00048,15]
[321017381,1711774238648,-207.75555556,0.00048,120]
[321017382,1711774238659,-150.0,0.00048,9]
[321017383,1711774238670,-457.575,0.00048342,2]
[321017384,1711774238683,-962.0,0.00048342,2]
[321017385,1711774238693,-605.0,0.00048342,2]
[321017386,1711774238703,-213.0,0.00048342,2]
[321017387,1711774238713,-150.0,0.00048342,2]
[321017388,1711774238724,-800.0,0.00048489,25]
[321017389,1711774238734,-150.0,0.000485,9]
[321017390,1711774238744,-151.033013,0.00048598,83]
[321017391,1711774238753,-207.75555556,0.00048603,120]
[321017392,1711774238763,-151.033013,0.00048618,84]
[321017393,1711774238773,-151.033013,0.00048638,85]
[321017394,1711774238782,-150.0,0.00048643,7]
[321017395,1711774238792,-151.033013,0.00048658,86]
[321017396,1711774238802,-206.04510296,0.00048675,7]
[321017397,1711774238812,-151.033013,0.00048678,87]
[321017398,1711774238821,-935.3757,0.0004868,2]
[321017399,1711774238831,-7623.48370358,0.0004868,2]
[321017400,1711774238841,-176.3115268,0.0004868,13]
[321017401,1711774238851,-1931.86664629,0.0004868,2]
[321017402,1711774238860,-246.81360784,0.0004868,2]
[321017403,1711774238870,-151.033013,0.00048698,88]
[321017404,1711774238879,-1067.59034668,0.00048705,2]
[321017405,1711774238889,-151.033013,0.00048708,95]
[321017406,1711774238899,-151.033013,0.00048718,88]
[321017407,1711774238909,-150.0,0.00048719,7]
[321017408,1711774238919,-151.033013,0.00048728,96]
[321017409,1711774238928,-157.033011,0.00048738,82]
[321017410,1711774238939,-151.033013,0.00048748,97]
[321017411,1711774238948,-210.7929301,0.00048751,7]
[321017412,1711774238958,-3074.78,0.00048757,10]
[321017413,1711774238967,-239.60645316,0.00048758,83]
[321017414,1711774238978,-551.8076807,0.00048765,2]
[321017415,1711774238988,-359.52635619,0.00048766,4]
[321017416,1711774238998,-500.0,0.00048767,9]
[321017417,1711774239007,-500.0,0.00048767,9]
[321017418,1711774239017,-500.0,0.00048767,9]
[321017419,1711774239026,-500.0,0.00048767,9]
[321017420,1711774239036,-500.0,0.00048767,9]
[321017421,1711774239046,-500.0,0.00048767,9]
[321017422,1711774239055,-500.0,0.00048767,9]
[321017423,1711774239065,-500.0,0.00048767,9]
[321017424,1711774239074,-500.0,0.00048767,9]
[321017425,1711774239084,-500.0,0.00048767,9]
[321017426,1711774239094,-500.0,0.00048767,9]
[321017427,1711774239103,-500.0,0.00048767,9]
[321017428,1711774239113,-500.0,0.00048767,9]
[321017429,1711774239123,-500.0,0.00048767,9]
[321017430,1711774239132,-500.0,0.00048767,9]
[321017431,1711774239141,-500.0,0.00048767,9]
[321017432,1711774239151,-406.66,0.0004877,30]
[321017433,1711774239160,-4384.77639382,0.00048778,4]
[321017434,1711774239170,-524.41611715,0.00048778,4]
[321017435,1711774239180,-195.56815547,0.00048778,4]
[321017436,1711774239189,-500.0,0.00048778,9]
[321017437,1711774239198,-2629.71725754,0.00048778,4]
[321017438,1711774239209,-155.0,0.00048778,4]
[321017439,1711774239219,-155.0,0.00048778,4]
[321017440,1711774239229,-781.50282112,0.00048778,4]
[321017441,1711774239238,-212.29241601,0.00048779,120]
[321017442,1711774239248,-500.0,0.00048779,9]
[321017443,1711774239258,-245000.0,0.0004878,2]
[321017444,1711774239267,-219.83622922,0.0004878,25]
[321017445,1711774239278,-8235.2484,0.0004878,2]
[321017446,1711774239289,-1381.74127797,0.0004878,25]
[321017447,1711774239302,-153.43144474,0.0004878,40]
[321017448,1711774239316,-484.28640764,0.0004878,2]
[321017449,1711774239326,-201.46139882,0.00048799,25]
[321017450,1711774239337,-158.0,0.000488,2]
[321017451,1711774239347,-150.0,0.000488,120]
[321017452,1711774239357,-268.68,0.000488,120]